fUST/lending_fUST_20251001
["ID","MTS","AMOUNT","RATE_DAILY","PERIOD"]
[388709616,1759327850580,-397.38,0.00020273,2]
[388709617,1759327850589,-500.0,0.00020273,2]
[388709618,1759327850598,-500.0,0.00020273,2]
[388709619,1759327850607,-500.0,0.00020273,2]
[388709620,1759327850616,-2893.3,0.00020273,2]
[388709621,1759327850625,-403.85,0.00020273,2]
[388709622,1759327850634,-500.0,0.00020273,2]
[388709623,1759327850643,-500.0,0.00020273,2]
[388709624,1759327850652,-574.35,0.00020273,2]
[388709625,1759327850661,-500.0,0.00020273,2]
[388709626,1759327850670,-500.0,0.00020273,2]
[388709627,1759327850679,-500.0,0.00020273,2]
[388709628,1759327850689,-500.0,0.00020273,2]
[388709629,1759327850698,-2362.01,0.00020273,2]
[388709630,1759327850707,-500.0,0.00020273,2]
[388709631,1759327850716,-500.0,0.00020273,2]
[388709632,1759327850725,-1540.14,0.00020273,2]
[388709633,1759327850734,-500.0,0.00020273,2]
[388709634,1759327850743,-500.0,0.00020273,2]
[388709635,1759327850752,-231.56,0.00020273,2]
[388709636,1759327850764,-500.0,0.00020273,2]
[388709637,1759327850773,-500.0,0.00020273,2]
[388709638,1759327850782,-3702.8,0.00020273,2]
[388709639,1759327850791,-500.0,0.00020273,2]
[388709640,1759327850801,-448.38758031,0.00020273,2]
[388709641,1759327850811,-500.0,0.00020273,2]
[388709642,1759327850820,-500.0,0.00020273,2]
[388709643,1759327850830,-597.1,0.00020273,2]
[388709644,1759327850841,-507.97,0.00020273,2]
[388709645,1759327850850,-500.0,0.00020273,2]
[388709646,1759327850860,-500.0,0.00020273,2]
[388709647,1759327850870,-585.59,0.00020273,2]
[388709648,1759327850880,-283.08,0.00020273,2]
[388709649,1759327850889,-554.95,0.00020273,2]
[388709650,1759327850898,-500.0,0.00020273,2]
[388709651,1759327850908,-235.33,0.00020273,2]
[388709652,1759327850917,-500.0,0.00020273,2]
[388709653,1759327850927,-500.0,0.00020273,2]
[388709654,1759327850937,-500.0,0.00020273,2]
[388709655,1759327850947,-561.22,0.00020273,2]
[388709656,1759327850956,-500.0,0.00020273,2]
[388709657,1759327850965,-271.93,0.00020273,2]
[388709658,1759327850975,-500.0,0.00020273,2]
[388709659,1759327850984,-670.65,0.00020273,2]
[388709660,1759327850993,-429.7,0.00020273,2]
[388709661,1759327851002,-500.0,0.00020273,2]
[388709662,1759327851011,-500.0,0.00020273,2]
[388709663,1759327851019,-500.0,0.00020273,2]
[388709664,1759327851028,-500.0,0.00020273,2]
[388709665,1759327851037,-500.0,0.00020273,2]
[388709666,1759327851047,-752.97,0.00020273,2]
[388709667,1759327851056,-536.7,0.00020273,2]
[388709668,1759327851065,-500.0,0.00020273,2]
[388709669,1759327851074,-500.0,0.00020273,2]
[388709670,1759327851083,-531.08,0.00020273,2]
[388709671,1759327851091,-1044.52,0.00020273,2]
[388709672,1759327851100,-500.0,0.00020273,2]
[388709673,1759327851109,-500.0,0.00020273,2]
[388709674,1759327851119,-500.0,0.00020273,2]
[388709675,1759327851129,-500.0,0.00020273,2]
[388709676,1759327851139,-500.0,0.00020273,2]
[388709677,1759327851148,-500.0,0.00020273,2]
[388709678,1759327851157,-553.59,0.00020273,2]
[388709679,1759327851168,-500.0,0.00020273,2]
[388709680,1759327851177,-183.2,0.00020273,2]
[388709681,1759327851188,-1415.31,0.00020273,2]
[388709682,1759327851197,-377.35,0.00020273,2]
[388709683,1759327851206,-500.0,0.00020273,2]
[388709684,1759327851215,-500.0,0.00020273,2]
[388709685,1759327851224,-534.93,0.00020273,2]
[388709686,1759327851233,-594.58,0.00020273,2]
[388709687,1759327851243,-500.0,0.00020273,2]
[388709688,1759327851252,-500.0,0.00020273,2]
[388709689,1759327851262,-598.62,0.00020273,2]
[388709690,1759327851271,-500.0,0.00020273,2]
[388709691,1759327851281,-482.98,0.00020273,2]
[388709692,1759327851290,-500.0,0.00020273,2]
[388709693,1759327851299,-500.0,0.00020273,2]
[388709694,1759327851308,-583.19,0.00020273,2]
[388709695,1759327851318,-1396.49,0.00020273,2]
[388709696,1759327851327,-585.06,0.00020273,2]
[388709697,1759327851336,-500.0,0.00020273,2]
[388709698,1759327851345,-500.0,0.00020273,2]
[388709699,1759327851354,-626.73,0.00020273,2]
[388709700,1759327851363,-500.0,0.00020273,2]
[388709701,1759327851372,-500.0,0.00020273,2]
[388709702,1759327851382,-500.0,0.00020273,2]
[388709703,1759327851391,-654.19,0.00020273,2]
[388709704,1759327851401,-500.0,0.00020273,2]
[388709705,1759327851411,-500.0,0.00020273,2]
[388709706,1759327851420,-500.0,0.00020273,2]
[388709707,1759327851430,-990.91,0.00020273,2]
[388709708,1759327851441,-500.0,0.00020273,2]
[388709709,1759327851451,-871.03,0.00020273,2]
[388709710,1759327851460,-680.72,0.00020273,2]
[388709711,1759327851470,-500.0,0.00020273,2]
[388709712,1759327851479,-500.0,0.00020273,2]
[388709713,1759327851488,-1061.8,0.00020273,2]
[388709714,1759327851498,-500.0,0.00020273,2]
[388709715,1759327851508,-500.0,0.00020273,2]
[388709716,1759327851518,-265.26391059,0.00020273,2]
[388709717,1759327851527,-500.0,0.00020274,2]
[388709718,1759327851537,-506.89658874,0.00020301,2]
[388709719,1759327851546,-4169.13349798,0.00020326,2]
[388709720,1759327851556,-151.0,0.000204,3]
[388709721,1759327851566,-1423.9921744,0.00020497,2]
[388709722,1759327851576,-166.0,0.00020505,2]
[388709723,1759327851586,-1000.0,0.00020521,2]
[388709724,1759327851595,-500.0,0.00020521,2]
[388709725,1759327851605,-500.0,0.00020521,2]
[388709726,1759327851614,-1000.0,0.00020521,2]
[388709727,1759327851624,-500.0,0.00020521,2]
[388709728,1759327851633,-314.43405764,0.00020521,2]
[388709729,1759327851643,-1000.0,0.00020521,2]
[388709730,1759327851652,-500.0,0.00020521,2]
[388709731,1759327851661,-521.44036848,0.00020521,2]
[388709732,1759327851670,-504.39253887,0.00020521,2]
[388709733,1759327851679,-1000.0,0.00020521,2]
[388709734,1759327851689,-500.0,0.00020521,2]
[388709735,1759327851698,-500.0,0.00020521,2]
[388709736,1759327851707,-1001.68996385,0.00020521,2]
[388709737,1759327851716,-1000.0,0.00020521,2]
[388709738,1759327851725,-1000.0,0.00020521,2]
[388709739,1759327851734,-1000.0,0.00020521,2]
[388709740,1759327851744,-1000.0,0.00020521,2]
[388709741,1759327851755,-500.0,0.00020521,2]
[388709742,1759327851774,-1000.0,0.00020521,2]
[388709743,1759327851783,-500.0,0.00020521,2]
[388709744,1759327851793,-1000.0,0.00020521,2]
[388709745,1759327851803,-500.0,0.00020521,2]
[388709746,1759327851814,-500.0,0.00020521,2]
[388709747,1759327851823,-1000.0,0.00020521,2]
[388709748,1759327851838,-500.0,0.00020521,2]
[388709749,1759327851847,-500.73488065,0.00020521,2]
[388709750,1759327851856,-413.1103713,0.00020521,2]
[388709751,1759327851865,-847.1513624,0.00020521,2]
[388709752,1759327851875,-1954.3,0.00020538,3]
[388709753,1759327851884,-1153.8,0.00020538,3]
[388709754,1759327851893,-576.9,0.00020538,3]
[388709755,1759327851903,-500.0,0.00020547,2]
[388709756,1759327851912,-533.09,0.00020547,2]
[388709757,1759327851921,-510.88,0.00020547,2]
[388709758,1759327851931,-399.51144712,0.00020547,2]
[388709759,1759327851941,-500.0,0.00020547,2]
[388709760,1759327851950,-500.0,0.00020547,2]
[388709761,1759327851960,-500.0,0.00020547,2]
[388709762,1759327851970,-500.0,0.00020547,2]
[388709763,1759327851979,-500.0,0.00020547,2]
[388709764,1759327851989,-500.0,0.00020547,2]
[388709765,1759327851999,-500.0,0.00020547,2]
[388709766,1759327852008,-500.0,0.00020547,2]
[388709767,1759327852018,-255.3,0.00020547,2]
[388709768,1759327852028,-851.78,0.00020547,2]
[388709769,1759327852038,-500.0,0.00020547,2]
[388709770,1759327852048,-500.0,0.00020547,2]
[388709771,1759327852058,-500.0,0.00020547,2]
[388709772,1759327852068,-500.0,0.00020547,2]
[388709773,1759327852077,-307.95,0.00020547,2]
[388709774,1759327852087,-500.0,0.00020547,2]
[388709775,1759327852097,-500.0,0.00020547,2]
[388709776,1759327852107,-500.0,0.00020547,2]
[388709777,1759327852117,-485.1,0.00020547,2]
[388709778,1759327852126,-395.37,0.00020547,2]
[388709779,1759327852136,-637.14,0.00020547,2]
[388709780,1759327852146,-480.0,0.00020547,2]
[388709781,1759327852155,-2188.24,0.00020547,2]
[388709782,1759327852165,-500.0,0.00020547,2]
[388709783,1759327852175,-500.0,0.00020547,2]
[388709784,1759327852185,-500.0,0.00020547,2]
[388709785,1759327852195,-500.0,0.00020547,2]
[388709786,1759327852204,-500.0,0.00020547,2]
[388709787,1759327852214,-500.0,0.00020547,2]
[388709788,1759327852226,-500.0,0.00020547,2]
[388709789,1759327852236,-500.0,0.00020547,2]
[388709790,1759327852246,-500.0,0.00020547,2]
[388709791,1759327852255,-500.0,0.00020547,2]
[388709792,1759327852266,-500.0,0.00020547,2]
[388709793,1759327852276,-672.61,0.00020547,2]
[388709794,1759327852286,-1419.91,0.00020547,2]
[388709795,1759327852295,-500.0,0.00020547,2]
[388709796,1759327852304,-500.0,0.00020547,2]
[388709797,1759327852314,-500.0,0.00020547,2]
[388709798,1759327852324,-500.0,0.00020547,2]
[388709799,1759327852334,-500.0,0.00020547,2]
[388709800,1759327852344,-500.0,0.00020547,2]
[388709801,1759327852354,-298.74,0.00020547,2]
[388709802,1759327852364,-256.28756973,0.00020547,2]
[388709803,1759327852374,-500.0,0.00020547,2]
[388709804,1759327852384,-907.68,0.00020547,2]
[388709805,1759327852394,-500.0,0.00020547,2]
[388709806,1759327852404,-500.0,0.00020547,2]
[388709807,1759327852413,-500.0,0.00020547,2]
[388709808,1759327852423,-2893.3,0.00020547,2]
[388709809,1759327852433,-500.0,0.00020547,2]
[388709810,1759327852444,-321.74,0.00020547,2]
[388709811,1759327852454,-574.35,0.00020547,2]
[388709812,1759327852463,-500.0,0.00020547,2]
[388709813,1759327852474,-173.32,0.00020547,2]
[388709814,1759327852484,-500.0,0.00020547,2]
[388709815,1759327852494,-500.0,0.00020547,2]
[388709816,1759327852504,-2362.01,0.00020547,2]
[388709817,1759327852513,-500.0,0.00020547,2]
[388709818,1759327852523,-500.0,0.00020547,2]
[388709819,1759327852533,-1540.14,0.00020547,2]
[388709820,1759327852542,-500.0,0.00020547,2]
[388709821,1759327852552,-309.99,0.00020547,2]
[388709822,1759327852561,-500.0,0.00020547,2]
[388709823,1759327852571,-500.0,0.00020547,2]
[388709824,1759327852581,-3702.8,0.00020547,2]
[388709825,1759327852591,-500.0,0.00020547,2]
[388709826,1759327852601,-500.0,0.00020547,2]
[388709827,1759327852611,-500.0,0.00020547,2]
[388709828,1759327852620,-597.1,0.00020547,2]
[388709829,1759327852630,-507.97,0.00020547,2]
[388709830,1759327852640,-500.0,0.00020547,2]
[388709831,1759327852649,-500.0,0.00020547,2]
[388709832,1759327852659,-585.59,0.00020547,2]
[388709833,1759327852669,-554.95,0.00020547,2]
[388709834,1759327852678,-500.0,0.00020547,2]
[388709835,1759327852690,-500.0,0.00020547,2]
[388709836,1759327852699,-500.0,0.00020547,2]
[388709837,1759327852709,-500.0,0.00020547,2]
[388709838,1759327852718,-561.22,0.00020547,2]
[388709839,1759327852728,-500.0,0.00020547,2]
[388709840,1759327852738,-670.65,0.00020547,2]
[388709841,1759327852747,-500.0,0.00020547,2]
[388709842,1759327852759,-500.0,0.00020547,2]
[388709843,1759327852771,-500.0,0.00020547,2]
[388709844,1759327852782,-500.0,0.00020547,2]
[388709845,1759327852791,-500.0,0.00020547,2]
[388709846,1759327852802,-752.97,0.00020547,2]
[388709847,1759327852811,-536.7,0.00020547,2]
[388709848,1759327852821,-500.0,0.00020547,2]
[388709849,1759327852831,-500.0,0.00020547,2]
[388709850,1759327852843,-531.08,0.00020547,2]
[388709851,1759327852852,-1044.52,0.00020547,2]
[388709852,1759327852862,-500.0,0.00020547,2]
[388709853,1759327852873,-500.0,0.00020547,2]
[388709854,1759327852884,-500.0,0.00020547,2]
[388709855,1759327852895,-500.0,0.00020547,2]
[388709856,1759327852905,-500.0,0.00020547,2]
[388709857,1759327852917,-500.0,0.00020547,2]
[388709858,1759327852928,-553.59,0.00020547,2]
[388709859,1759327852940,-500.0,0.00020547,2]
[388709860,1759327852951,-1415.31,0.00020547,2]
[388709861,1759327852961,-500.0,0.00020547,2]
[388709862,1759327852972,-500.0,0.00020547,2]
[388709863,1759327852982,-534.93,0.00020547,2]
[388709864,1759327852993,-594.58,0.00020547,2]
[388709865,1759327853003,-500.0,0.00020547,2]
[388709866,1759327853133,-500.0,0.00020547,2]
[388709867,1759327853144,-598.62,0.00020547,2]
[388709868,1759327853154,-500.0,0.00020547,2]
[388709869,1759327853163,-500.0,0.00020547,2]
[388709870,1759327853173,-500.0,0.00020547,2]
[388709871,1759327853183,-583.19,0.00020547,2]
[388709872,1759327853194,-1396.49,0.00020547,2]
[388709873,1759327853204,-585.06,0.00020547,2]
[388709874,1759327853214,-500.0,0.00020547,2]
[388709875,1759327853223,-500.0,0.00020547,2]
[388709876,1759327853233,-626.73,0.00020547,2]
[388709877,1759327853243,-500.0,0.00020547,2]
[388709878,1759327853253,-500.0,0.00020547,2]
[388709879,1759327853264,-500.0,0.00020547,2]
[388709880,1759327853275,-654.19,0.00020547,2]
[388709881,1759327853286,-500.0,0.00020547,2]
[388709882,1759327853298,-500.0,0.00020547,2]
[388709883,1759327853309,-990.91,0.00020547,2]
[388709884,1759327853319,-500.0,0.00020547,2]
[388709885,1759327853330,-871.03,0.00020547,2]
[388709886,1759327853340,-680.72,0.00020547,2]
[388709887,1759327853350,-500.0,0.00020547,2]
[388709888,1759327853361,-337.38,0.00020547,2]
[388709889,1759327853371,-1061.8,0.00020547,2]
[388709890,1759327853380,-500.0,0.00020547,2]
[388709891,1759327853390,-500.0,0.00020547,2]
[388709892,1759327853401,-500.0,0.00020548,2]
[388709893,1759327853411,-151.0,0.00020548,7]
[388709894,1759327853420,-151.0,0.00020548,7]
[388709895,1759327853430,-176.85534,0.00020548,7]
[388709896,1759327853441,-250.0,0.00020561,2]
[388709897,1759327853450,-1500.0,0.00020568,2]
[388709898,1759327853459,-1000.0,0.00020568,2]
[388709899,1759327853469,-1000.0,0.00020568,2]
[388709900,1759327853479,-1500.0,0.00020568,2]
[388709901,1759327853488,-1500.0,0.00020568,2]
[388709902,1759327853498,-1500.0,0.00020568,2]
[388709903,1759327853508,-1002.43559663,0.00020568,2]
[388709904,1759327853518,-1500.0,0.00020568,2]
[388709905,1759327853528,-1500.0,0.00020568,2]
[388709906,1759327853538,-630.89369699,0.00020568,2]
[388709907,1759327853548,-1500.0,0.00020568,2]
[388709908,1759327853559,-1500.0,0.00020568,2]
[388709909,1759327853570,-1423.9921744,0.00020662,2]
[388709910,1759327853581,-4169.13349798,0.00020813,2]
[388709911,1759327853592,-500.0,0.00020821,2]
[388709912,1759327853603,-533.09,0.00020821,2]
[388709913,1759327853613,-510.88,0.00020821,2]
[388709914,1759327853623,-500.0,0.00020821,2]
[388709915,1759327853632,-500.0,0.00020821,2]
[388709916,1759327853642,-500.0,0.00020821,2]
[388709917,1759327853651,-500.0,0.00020821,2]
[388709918,1759327853660,-322.92984958,0.00020821,2]
[388709919,1759327853669,-500.0,0.00020821,2]
[388709920,1759327853679,-500.0,0.00020821,2]
[388709921,1759327853689,-500.0,0.00020821,2]
[388709922,1759327853699,-851.78,0.00020821,2]
[388709923,1759327853708,-500.0,0.00020821,2]
[388709924,1759327853718,-500.0,0.00020821,2]
[388709925,1759327853727,-151.82,0.00020821,2]
[388709926,1759327853736,-500.0,0.00020821,2]
[388709927,1759327853745,-500.0,0.00020821,2]
[388709928,1759327853756,-500.0,0.00020821,2]
[388709929,1759327853768,-500.0,0.00020821,2]
[388709930,1759327853778,-637.14,0.00020821,2]
[388709931,1759327853787,-2188.24,0.00020821,2]
[388709932,1759327853797,-500.0,0.00020821,2]
[388709933,1759327853808,-152.43358355,0.00020821,2]
[388709934,1759327853818,-500.0,0.00020821,2]
[388709935,1759327853827,-500.0,0.00020821,2]
[388709936,1759327853837,-500.0,0.00020821,2]
[388709937,1759327853847,-500.0,0.00020821,2]
[388709938,1759327853856,-403.81,0.00020821,2]
[388709939,1759327853866,-486.15,0.00020821,2]
[388709940,1759327853876,-500.0,0.00020821,2]
[388709941,1759327853885,-500.0,0.00020821,2]
[388709942,1759327853895,-500.0,0.00020821,2]
[388709943,1759327853904,-672.61,0.00020821,2]
[388709944,1759327853914,-1419.91,0.00020821,2]
[388709945,1759327853924,-500.0,0.00020821,2]
[388709946,1759327853933,-500.0,0.00020821,2]
[388709947,1759327853943,-500.0,0.00020821,2]
[388709948,1759327853952,-500.0,0.00020821,2]
[388709949,1759327853962,-500.0,0.00020821,2]
[388709950,1759327853972,-500.0,0.00020821,2]
[388709951,1759327853982,-500.0,0.00020821,2]
[388709952,1759327853991,-907.68,0.00020821,2]
[388709953,1759327854001,-500.0,0.00020821,2]
[388709954,1759327854012,-500.0,0.00020821,2]
[388709955,1759327854021,-500.0,0.00020821,2]
[388709956,1759327854031,-2893.3,0.00020821,2]
[388709957,1759327854040,-500.0,0.00020821,2]
[388709958,1759327854050,-574.35,0.00020821,2]
[388709959,1759327854059,-500.0,0.00020821,2]
[388709960,1759327854069,-500.0,0.00020821,2]
[388709961,1759327854079,-500.0,0.00020821,2]
[388709962,1759327854088,-2362.01,0.00020821,2]
[388709963,1759327854097,-500.0,0.00020821,2]
[388709964,1759327854107,-500.0,0.00020821,2]
[388709965,1759327854116,-1540.14,0.00020821,2]
[388709966,1759327854126,-500.0,0.00020821,2]
[388709967,1759327854136,-500.0,0.00020821,2]
[388709968,1759327854145,-500.0,0.00020821,2]
[388709969,1759327854155,-3702.8,0.00020821,2]
[388709970,1759327854164,-500.0,0.00020821,2]
[388709971,1759327854174,-500.0,0.00020821,2]
[388709972,1759327854183,-500.0,0.00020821,2]
[388709973,1759327854193,-507.97,0.00020821,2]
[388709974,1759327854203,-597.1,0.00020821,2]
[388709975,1759327854212,-500.0,0.00020821,2]
[388709976,1759327854222,-500.0,0.00020821,2]
[388709977,1759327854232,-585.59,0.00020821,2]
[388709978,1759327854242,-554.95,0.00020821,2]
[388709979,1759327854252,-500.0,0.00020821,2]
[388709980,1759327854262,-500.0,0.00020821,2]
[388709981,1759327854272,-500.0,0.00020821,2]
[388709982,1759327854282,-500.0,0.00020821,2]
[388709983,1759327854292,-561.22,0.00020821,2]
[388709984,1759327854301,-500.0,0.00020821,2]
[388709985,1759327854311,-670.65,0.00020821,2]
[388709986,1759327854321,-500.0,0.00020821,2]
[388709987,1759327854330,-500.0,0.00020821,2]
[388709988,1759327854340,-500.0,0.00020821,2]
[388709989,1759327854350,-500.0,0.00020821,2]
[388709990,1759327854360,-500.0,0.00020821,2]
[388709991,1759327854370,-752.97,0.00020821,2]
[388709992,1759327854379,-536.7,0.00020821,2]
[388709993,1759327854389,-500.0,0.00020821,2]
[388709994,1759327854398,-500.0,0.00020821,2]
[388709995,1759327854408,-531.08,0.00020821,2]
[388709996,1759327854417,-1044.52,0.00020821,2]
[388709997,1759327854426,-500.0,0.00020821,2]
[388709998,1759327854436,-500.0,0.00020821,2]
[388709999,1759327854445,-500.0,0.00020821,2]
[388710000,1759327854455,-500.0,0.00020821,2]
[388710001,1759327854465,-500.0,0.00020821,2]
[388710002,1759327854474,-645.24509683,0.00020821,2]
[388710003,1759327854483,-553.59,0.00020821,2]
[388710004,1759327854493,-500.0,0.00020821,2]
[388710005,1759327854503,-1415.31,0.00020821,2]
[388710006,1759327854512,-500.0,0.00020821,2]
[388710007,1759327854521,-500.0,0.00020821,2]
[388710008,1759327854530,-534.93,0.00020821,2]
[388710009,1759327854539,-594.58,0.00020821,2]
[388710010,1759327854549,-500.0,0.00020821,2]
[388710011,1759327854558,-500.0,0.00020821,2]
[388710012,1759327854568,-598.62,0.00020821,2]
[388710013,1759327854577,-267.07246304,0.00020821,2]
[388710014,1759327854586,-500.0,0.00020821,2]
[388710015,1759327854596,-500.0,0.00020821,2]
[388710016,1759327854605,-583.19,0.00020821,2]
[388710017,1759327854615,-1396.49,0.00020821,2]
[388710018,1759327854623,-585.06,0.00020821,2]
[388710019,1759327854633,-500.0,0.00020821,2]
[388710020,1759327854642,-500.0,0.00020821,2]
[388710021,1759327854651,-626.73,0.00020821,2]
[388710022,1759327854661,-500.0,0.00020821,2]
[388710023,1759327854670,-583.63853698,0.00020821,2]
[388710024,1759327854679,-500.0,0.00020821,2]
[388710025,1759327854690,-654.19,0.00020821,2]
[388710026,1759327854700,-500.0,0.00020821,2]
[388710027,1759327854709,-500.0,0.00020821,2]
[388710028,1759327854719,-990.91,0.00020821,2]
[388710029,1759327854729,-500.0,0.00020821,2]
[388710030,1759327854738,-871.03,0.00020821,2]
[388710031,1759327854748,-680.72,0.00020821,2]
[388710032,1759327854758,-500.0,0.00020821,2]
[388710033,1759327854778,-1061.8,0.00020821,2]
[388710034,1759327854794,-500.0,0.00020821,2]
[388710035,1759327854805,-500.0,0.00020821,2]
[388710036,1759327854816,-500.0,0.00020822,2]
[388710037,1759327854825,-160.0,0.0002084,2]
[388710038,1759327854835,-300.0,0.00020888,2]
[388710039,1759327854844,-420.0,0.00020888,2]
[388710040,1759327854855,-395.0,0.00020888,2]
[388710041,1759327854864,-302.0,0.00020888,2]
[388710042,1759327854874,-500.0,0.00020979,2]
[388710043,1759327854884,-471.20805777,0.00020979,2]
[388710044,1759327854894,-500.0,0.00020979,2]
[388710045,1759327854904,-176.23590451,0.00020979,2]
[388710046,1759327854914,-500.0,0.00020979,2]
[388710047,1759327854923,-1680.0,0.0002099,2]
[388710048,1759327854932,-1423.9921744,0.00021014,2]
[388710049,1759327854943,-166.0,0.00021053,2]
[388710050,1759327854952,-1500.0,0.00021068,2]
[388710051,1759327854962,-500.0,0.00021068,2]
[388710052,1759327854971,-1000.0,0.00021068,2]
[388710053,1759327854980,-1500.0,0.00021068,2]
[388710054,1759327854990,-500.0,0.00021068,2]
[388710055,1759327854999,-500.0,0.00021068,2]
[388710056,1759327855009,-1500.0,0.00021068,2]
[388710057,1759327855018,-273.33965458,0.00021068,2]
[388710058,1759327855028,-518.29434462,0.0002107,2]
[388710059,1759327855037,-500.0,0.00021095,2]
[388710060,1759327855046,-533.09,0.00021095,2]
[388710061,1759327855055,-510.88,0.00021095,2]
[388710062,1759327855065,-265.20915775,0.00021095,2]
[388710063,1759327855074,-500.0,0.00021095,2]
[388710064,1759327855084,-500.0,0.00021095,2]
[388710065,1759327855093,-500.0,0.00021095,2]
[388710066,1759327855103,-500.0,0.00021095,2]
[388710067,1759327855111,-500.0,0.00021095,2]
[388710068,1759327855120,-500.0,0.00021095,2]
[388710069,1759327855129,-851.78,0.00021095,2]
[388710070,1759327855138,-500.0,0.00021095,2]
[388710071,1759327855147,-500.0,0.00021095,2]
[388710072,1759327855156,-500.0,0.00021095,2]
[388710073,1759327855165,-500.0,0.00021095,2]
[388710074,1759327855174,-500.0,0.00021095,2]
[388710075,1759327855183,-500.0,0.00021095,2]
[388710076,1759327855197,-637.14,0.00021095,2]
[388710077,1759327855206,-2188.24,0.00021095,2]
[388710078,1759327855214,-500.0,0.00021095,2]
[388710079,1759327855223,-616.32659671,0.00021095,2]
[388710080,1759327855231,-500.0,0.00021095,2]
[388710081,1759327855240,-500.0,0.00021095,2]
[388710082,1759327855249,-500.0,0.00021095,2]
[388710083,1759327855258,-340.89601216,0.00021095,2]
[388710084,1759327855267,-500.0,0.00021095,2]
[388710085,1759327855275,-500.0,0.00021095,2]
[388710086,1759327855284,-672.61,0.00021095,2]
[388710087,1759327855293,-1419.91,0.00021095,2]
[388710088,1759327855303,-500.0,0.00021095,2]
[388710089,1759327855313,-500.0,0.00021095,2]
[388710090,1759327855322,-500.0,0.00021095,2]
[388710091,1759327855331,-500.0,0.00021095,2]
[388710092,1759327855340,-500.0,0.00021095,2]
[388710093,1759327855349,-500.0,0.00021095,2]
[388710094,1759327855358,-500.0,0.00021095,2]
[388710095,1759327855367,-907.68,0.00021095,2]
[388710096,1759327855377,-500.0,0.00021095,2]
[388710097,1759327855387,-500.0,0.00021095,2]
[388710098,1759327855396,-500.0,0.00021095,2]
[388710099,1759327855406,-2893.3,0.00021095,2]
[388710100,1759327855415,-500.0,0.00021095,2]
[388710101,1759327855424,-574.35,0.00021095,2]
[388710102,1759327855433,-500.0,0.00021095,2]
[388710103,1759327855447,-500.0,0.00021095,2]
[388710104,1759327855455,-500.0,0.00021095,2]
[388710105,1759327855465,-2362.01,0.00021095,2]
[388710106,1759327855474,-500.0,0.00021095,2]
[388710107,1759327855483,-500.0,0.00021095,2]
[388710108,1759327855492,-1540.14,0.00021095,2]
[388710109,1759327855501,-500.0,0.00021095,2]
[388710110,1759327855511,-500.0,0.00021095,2]
[388710111,1759327855520,-500.0,0.00021095,2]
[388710112,1759327855529,-3702.8,0.00021095,2]
[388710113,1759327855539,-500.0,0.00021095,2]
[388710114,1759327855548,-500.0,0.00021095,2]
[388710115,1759327855557,-500.0,0.00021095,2]